bitfinex/quotes_SOLUSD_20251013
["timestamp","ask_amount","ask_price","bid_price","bid_amount"]
[1760382439973,3.90615441,206.45,206.42,8.86]
[1760382440300,14.78262962,206.43,206.36,4.58615441]
[1760382440489,10.87647521,206.43,206.37,18.27181996]
[1760382440787,4.62615441,206.44,206.37,18.27181996]
[1760382440788,40.42676528,206.44,206.37,18.27181996]
[1760382440962,41.14676528,206.44,206.37,14.36566555]
[1760382441911,10.87647521,206.4,206.33,4.84660495]
[1760382442184,10.87647521,206.38,206.34,8.84]
[1760382442490,10.87647521,206.36,206.32,0.88]
[1760382442691,14.78262962,206.36,206.32,0.2]
[1760382442891,0.72,206.35,206.33,8.84]
[1760382443196,15.72246727,206.36,206.33,8.84]
[1760382443362,16.44246727,206.36,206.33,8.84]
[1760382443570,10.87647521,206.34,206.32,0.2]
[1760382443763,10.87647521,206.33,206.32,0.2]
[1760382443971,10.87647521,206.33,206.32,9.04]
[1760382444402,11.59647521,206.33,206.32,9.04]
[1760382444768,15.50262962,206.33,206.32,9.04]
[1760382445393,20.34923457,206.33,206.32,9.04]
[1760382445897,15.50262962,206.33,206.32,9.04]
[1760382446396,15.50262962,206.33,206.32,9.72]
[1760382446397,10.87647521,206.33,206.32,9.72]
[1760382446608,10.87647521,206.33,206.32,9.04]
[1760382447097,11.59647521,206.33,206.32,9.04]
[1760382447295,16.44308016,206.33,206.32,9.04]
[1760382447502,20.34923457,206.33,206.32,9.04]
[1760382447682,16.44308016,206.33,206.32,9.04]
[1760382447868,20.34923457,206.33,206.32,9.04]
[1760382448577,20.34923457,206.33,206.32,0.2]
[1760382448795,20.34923457,206.33,206.32,9.04]
[1760382449091,20.34923457,206.33,206.32,0.2]
[1760382449388,20.34923457,206.33,206.32,9.04]
[1760382450076,31.67647521,206.29,206.28,0.2]
[1760382450271,49.4342864,206.29,206.28,9.04]
[1760382450593,50.1542864,206.29,206.28,9.04]
[1760382451365,52.12186416,206.29,206.28,9.04]
[1760382451784,45.52813199,206.29,206.28,9.04]
[1760382451986,24.72813199,206.29,206.28,9.04]
[1760382452297,24.72813199,206.29,206.28,15.59373217]
[1760382453007,24.72813199,206.29,206.28,9.04]
[1760382454098,24.72813199,206.29,206.28,15.59373217]
[1760382454289,24.72813199,206.29,206.28,14.91373217]
[1760382454694,24.72813199,206.29,206.28,19.76151188]
[1760382455001,13.85165678,206.29,206.28,20.44151188]
[1760382455203,24.72813199,206.29,206.28,0.2]
[1760382455519,24.72813199,206.29,206.28,14.93373217]
[1760382456599,24.72813199,206.29,206.28,15.61373217]
[1760382457593,24.72813199,206.29,206.28,9.06]
[1760382459203,24.72813199,206.29,206.28,20.46151188]
[1760382459783,13.85165678,206.29,206.28,20.46151188]
[1760382463312,13.85165678,206.29,206.28,14.58777971]
[1760382463514,13.85165678,206.29,206.28,20.46151188]
[1760382463822,24.72813199,206.29,206.28,9.06]
[1760382464797,24.72813199,206.29,206.28,19.78151188]
[1760382465004,13.85165678,206.29,206.28,14.58777971]
[1760382465332,24.72813199,206.29,206.28,20.46151188]
[1760382465725,13.85165678,206.29,206.28,20.46151188]
[1760382466097,13.85165678,206.29,206.28,19.78151188]
[1760382466296,24.72813199,206.29,206.28,10.92151188]
[1760382466604,24.72813199,206.29,206.28,20.46151188]
[1760382466930,24.72813199,206.29,206.28,10.92151188]
[1760382467230,24.72813199,206.29,206.28,19.76151188]
[1760382468005,25.40813199,206.29,206.28,0.2]
[1760382468202,24.72813199,206.29,206.28,9.04]
[1760382468924,24.72813199,206.29,206.28,15.63373217]
[1760382469096,13.85165678,206.29,206.28,20.48151188]
[1760382472336,24.72813199,206.29,206.28,10.92151188]
[1760382472546,25.42813199,206.29,206.28,0.2]
[1760382472844,25.42813199,206.29,206.28,9.04]
[1760382473818,24.72813199,206.29,206.28,19.76151188]
[1760382474126,24.72813199,206.29,206.28,14.91373217]
[1760382474631,24.72813199,206.29,206.28,19.76151188]
[1760382474840,24.72813199,206.29,206.28,9.04]
[1760382475009,25.42813199,206.29,206.28,9.04]
[1760382475932,24.72813199,206.29,206.28,13.88777971]
[1760382476227,24.72813199,206.29,206.28,19.76151188]
[1760382477027,24.72813199,206.29,206.28,14.91373217]
[1760382477541,24.72813199,206.29,206.28,9.04]
[1760382477719,24.72813199,206.29,206.28,14.91373217]
[1760382478340,24.72813199,206.29,206.28,19.76151188]
[1760382478914,24.72813199,206.29,206.28,20.43151188]
[1760382479521,24.72813199,206.29,206.28,19.76151188]
[1760382479721,24.72813199,206.29,206.28,20.43151188]
[1760382480929,24.72813199,206.29,206.28,19.76151188]
[1760382482235,13.85165678,206.29,206.28,20.43151188]
[1760382483934,13.85165678,206.29,206.28,13.88777971]
[1760382484233,13.85165678,206.29,206.28,19.76151188]
[1760382484637,13.85165678,206.29,206.28,20.43151188]
[1760382485363,24.72813199,206.29,206.28,5.04777971]
[1760382485533,25.42813199,206.29,206.28,0.2]
[1760382485739,24.72813199,206.29,206.28,9.04]
[1760382486140,25.42813199,206.29,206.28,9.04]
[1760382487133,24.72813199,206.29,206.28,19.76151188]
[1760382488152,24.72813199,206.29,206.28,9.04]
[1760382488967,36.14940887,206.29,206.28,0.2]
[1760382489128,36.14940887,206.29,206.2,5.87373217]
[1760382489331,10.87647521,206.23,206.17,10.72406919]
[1760382489528,10.87647521,206.21,206.18,8.84]
[1760382489956,0.7,206.21,206.18,14.71373217]
[1760382490134,10.87647521,206.25,206.2,5.87373217]
[1760382490380,10.87647521,206.25,206.24,5.87373217]
[1760382490542,10.87647521,206.28,206.24,15.38373217]
[1760382490854,13.85165678,206.29,206.27,5.87373217]
[1760382491058,13.85165678,206.29,206.28,15.38373217]
[1760382491439,1e-08,206.29,206.28,20.23151188]
[1760382491770,0.7,206.39,206.28,32.35096117]
[1760382491941,0.7,206.39,206.36,5.87373217]
[1760382492137,20.8,206.38,206.37,8.84]
[1760382492543,32.37647521,206.38,206.37,8.84]
[1760382493040,11.57647521,206.38,206.37,8.84]
[1760382493240,10.87647521,206.38,206.37,8.84]
[1760382493848,31.67647521,206.38,206.37,8.84]
[1760382494151,32.37647521,206.38,206.37,8.84]
[1760382494859,31.67647521,206.38,206.37,8.84]
[1760382496762,10.87647521,206.38,206.37,14.35566555]
[1760382496975,10.87647521,206.44,206.37,20.22939772]
[1760382497257,10.87647521,206.47,206.37,26.46982943]
[1760382497475,10.87647521,206.44,206.42,5.87373217]
[1760382497649,11.57647521,206.44,206.43,8.84]
[1760382498158,20.8,206.41,206.37,5.87373217]
[1760382498362,11.57647521,206.4,206.38,8.84]
[1760382499035,10.87647521,206.39,206.38,8.84]
[1760382500047,10.87647521,206.39,206.37,10.71938211]
[1760382500248,10.87647521,206.39,206.38,8.84]
[1760382501065,10.87647521,206.39,206.37,10.71938211]
[1760382501266,10.87647521,206.39,206.38,8.84]
[1760382501848,10.87647521,206.38,206.35,4.84597878]
[1760382502046,11.59647521,206.38,206.36,8.84]
[1760382502964,11.59647521,206.37,206.36,8.84]
[1760382504461,11.59647521,206.37,206.3,4.84708678]
[1760382504462,10.87647521,206.36,206.3,4.84708678]
[1760382504660,10.87647521,206.34,206.31,8.84]
[1760382504867,10.87647521,206.34,206.31,14.71373217]
[1760382505557,10.87647521,206.34,206.32,4.84683986]
[1760382505759,10.87647521,206.37,206.33,8.84]
[1760382506360,10.87647521,206.38,206.33,14.71373217]
[1760382506568,10.87647521,206.36,206.33,14.71373217]
[1760382506867,10.87647521,206.35,206.33,8.84]
[1760382507372,10.87647521,206.38,206.34,8.84]
[1760382507557,0.72,206.38,206.34,8.84]
[1760382507759,21.59555302,206.39,206.34,8.84]
[1760382508063,10.87647521,206.36,206.34,8.84]
[1760382508461,11.59647521,206.37,206.34,8.84]
[1760382508762,142.89647521,206.37,206.34,8.84]
[1760382509142,142.17647521,206.37,206.34,8.84]
[1760382509349,31.67647521,206.35,206.29,12.11850565]
[1760382509555,31.67647521,206.35,206.3,8.84]
[1760382509846,10.87647521,206.35,206.34,5.87373217]
[1760382510046,10.87647521,206.4,206.34,15.39373217]
[1760382510270,10.87647521,206.4,206.36,5.87373217]
[1760382510642,10.87647521,206.4,206.37,8.84]
[1760382510795,11.59647521,206.4,206.37,8.84]
[1760382511266,10.87647521,206.4,206.37,14.71373217]
[1760382511461,10.87647521,206.4,206.37,17.59447305]
[1760382511958,10.87647521,206.4,206.38,3.90884594]
[1760382512174,10.87647521,206.42,206.39,8.84]
[1760382512351,11.59647521,206.42,206.39,8.84]
[1760382512953,32.39647521,206.44,206.39,8.84]
[1760382513269,10.87647521,206.42,206.4,8.84]
[1760382513566,10.87647521,206.42,206.41,8.84]
[1760382513875,11.59647521,206.42,206.41,8.84]
[1760382515160,10.87647521,206.42,206.41,8.84]
[1760382516355,10.87647521,206.43,206.41,8.84]
[1760382516669,10.87647521,206.43,206.41,17.59355653]
[1760382516865,18.54778559,206.48,206.42,4.58884594]
[1760382516866,2.53069238,206.48,206.42,4.58884594]
[1760382517044,10.87647521,206.47,206.44,3.90884594]
[1760382517250,10.87647521,206.48,206.45,8.84]
[1760382517444,0.72,206.47,206.45,8.84]
[1760382517672,11.59647521,206.46,206.41,1.56240946]
[1760382517970,31.67647521,206.42,206.36,1.56240946]
[1760382518150,31.67647521,206.42,206.37,8.84]
[1760382518352,31.67647521,206.42,206.37,14.36561016]
[1760382518554,10.87647521,206.4,206.37,8.84]
[1760382519872,10.87647521,206.4,206.36,4.8458886]
[1760382520170,10.87647521,206.4,206.37,8.84]
[1760382520400,31.67647521,206.41,206.37,13.68557851]
[1760382520555,31.67647521,206.41,206.39,1.56240946]
[1760382520758,31.67647521,206.41,206.4,8.84]
[1760382525380,31.67647521,206.41,206.4,9.52]
[1760382525570,10.87647521,206.48,206.4,15.9273707]
[1760382525880,10.87647521,206.48,206.43,1.56240946]
[1760382526090,10.87647521,206.44,206.4,16.95736434]
[1760382526284,10.87647521,206.4,206.32,4.84683986]
[1760382526459,11.59647521,206.4,206.33,8.84]
[1760382526884,32.39647521,206.4,206.33,9.52]
[1760382527179,10.87647521,206.38,206.34,8.84]
[1760382527382,10.87647521,206.36,206.34,8.84]
[1760382528394,10.87647521,206.34,206.27,1.56240946]
[1760382528592,10.87647521,206.32,206.28,9.51]
[1760382528760,10.87647521,206.32,206.29,0.67]
[1760382528959,10.87647521,206.32,206.3,8.84]
[1760382529169,0.72,206.31,206.3,8.84]
[1760382529359,10.87647521,206.3,206.25,5.51827062]
[1760382529576,12.43888467,206.3,206.26,9.52]
[1760382529762,10.87647521,206.32,206.27,0.68]
[1760382529964,10.87647521,206.32,206.28,9.52]
[1760382530400,10.87647521,206.32,206.28,8.84]
[1760382530401,10.87647521,206.3,206.28,8.84]
[1760382530760,12.43888467,206.3,206.28,8.84]
[1760382531162,12.43888467,206.29,206.28,8.84]
[1760382531968,10.87647521,206.29,206.28,8.84]
[1760382532479,10.87647521,206.29,206.28,0.68]
[1760382532675,10.87647521,206.29,206.28,8.84]
[1760382538692,10.87647521,206.29,206.28,14.36777971]
[1760382540005,10.87647521,206.29,206.28,13.68777971]
[1760382540710,0.72,206.39,206.28,28.04963846]
[1760382540919,1.56240946,206.34,206.29,8.84]
[1760382541221,10.87647521,206.33,206.3,0.68]
[1760382541497,10.87647521,206.38,206.32,1.56240946]
[1760382541690,10.87647521,206.35,206.34,1.56240946]
[1760382541890,1.56240946,206.42,206.34,1.56240946]
[1760382541891,29.77635379,206.49,206.37,20.8]
[1760382542090,0.1,206.5,206.47,1.56240946]
[1760382542298,0.1,206.5,206.49,7.8120473]
[1760382542685,2.52887291,206.6,206.5,16.94915254]
[1760382542889,2.52887291,206.6,206.52,1.56240946]
[1760382542890,14.19352742,206.6,206.52,1.56240946]
[1760382543208,0.72,206.59,206.52,1.56240946]
[1760382543391,0.72,206.59,206.52,2.24240946]
[1760382543995,10.87647521,206.58,206.52,2.24240946]
[1760382544209,0.72,206.59,206.52,2.24240946]
[1760382544590,10.87647521,206.58,206.52,2.24240946]
[1760382544794,10.87647521,206.58,206.52,7.08455549]
[1760382545296,14.19352742,206.6,206.52,7.08455549]
[1760382545487,10.87647521,206.59,206.58,3.90070052]
[1760382545683,10.87647521,206.59,206.58,8.82]
[1760382545891,11.59647521,206.59,206.58,8.82]
[1760382546604,0.1,206.63,206.58,13.40070052]
[1760382546807,1e-08,206.63,206.62,3.90070052]
[1760382547006,0.1,206.73,206.62,16.62140104]
[1760382547212,0.1,206.73,206.67,3.90070052]
[1760382547413,0.1,206.73,206.67,12.72070052]
[1760382547706,0.1,206.73,206.67,13.40070052]
[1760382548207,0.1,206.73,206.67,9.5]
[1760382548403,0.82,206.73,206.67,8.82]
[1760382548609,10.87647521,206.72,206.67,12.72070052]
[1760382548805,10.87647521,206.72,206.67,18.23933215]
[1760382548990,10.87647521,206.72,206.67,17.55933215]
[1760382549188,10.87647521,206.7,206.67,17.55933215]
[1760382549588,10.97647521,206.73,206.67,17.55933215]
[1760382549796,10.97647521,206.73,206.67,18.23933215]
[1760382549997,10.97647521,206.73,206.67,17.55933215]
[1760382552195,0.72,206.72,206.67,13.65863163]
[1760382552502,0.72,206.72,206.67,17.55933215]
[1760382556006,0.1,206.73,206.67,18.23933215]
[1760382556617,0.1,206.73,206.67,54.5290694]
[1760382556790,0.1,206.73,206.72,3.90070052]
[1760382556988,0.1,206.73,206.72,12.72070052]
[1760382557404,0.1,206.73,206.72,13.40070052]
[1760382557603,0.1,206.73,206.72,9.5]
[1760382557803,0.1,206.73,206.72,8.82]
[1760382558117,0.1,206.73,206.72,17.55816182]
[1760382558894,0.1,206.73,206.72,8.73816182]
[1760382559201,0.1,206.73,206.72,17.55816182]
[1760382559597,0.1,206.74,206.72,17.55816182]
[1760382559598,1e-08,206.74,206.72,18.26816182]
[1760382559899,11.03063407,206.8,206.75,20.8]
[1760382560097,11.03063407,206.8,206.79,3.90070052]
[1760382560297,11.03063407,206.8,206.79,8.82]
[1760382560510,22.58710928,206.8,206.79,8.82]
[1760382560725,22.58710928,206.8,206.72,16.93111455]
[1760382560726,10.87647521,206.79,206.7,8.73841877]
[1760382560906,10.87647521,206.75,206.71,8.82]
[1760382561595,10.87647521,206.75,206.72,4.8374613]
[1760382561795,10.87647521,206.76,206.73,8.82]
[1760382561997,15.36717573,206.76,206.73,8.82]
[1760382563004,10.87647521,206.76,206.73,8.82]
[1760382563209,24.70070052,206.74,206.73,8.82]
[1760382563500,36.16717573,206.74,206.73,8.82]
[1760382563712,10.87647521,206.69,206.62,0.71]
[1760382564023,3.90070052,206.65,206.63,8.82]
[1760382564325,0.59,206.74,206.64,4.61070052]
[1760382564618,10.87647521,206.73,206.65,9.53]
[1760382564816,10.87647521,206.73,206.68,3.90070052]
[1760382565019,14.77717573,206.75,206.69,9.53]
[1760382565521,10.87647521,206.75,206.69,13.43070052]
[1760382565716,10.87647521,206.75,206.71,8.73839584]
[1760382565913,10.87647521,206.75,206.72,9.53]
[1760382566328,10.87647521,206.75,206.72,8.82]
[1760382566513,10.87647521,206.75,206.73,0.71]
[1760382566715,10.87647521,206.75,206.74,8.82]
[1760382567822,11.62063407,206.8,206.74,17.55769384]
[1760382568123,10.87647521,206.79,206.74,17.55769384]
[1760382568504,10.87647521,206.79,206.74,18.26769384]
[1760382569045,10.87647521,206.77,206.74,8.82]
[1760382569332,4.49070052,206.76,206.74,8.82]
[1760382569536,14.77717573,206.75,206.74,8.82]
[1760382569712,15.36717573,206.75,206.74,8.82]
[1760382571022,20.2039351,206.75,206.74,8.82]
[1760382571328,10.87647521,206.74,206.65,0.71]
[1760382571506,14.77717573,206.7,206.66,8.82]
[1760382571906,0.59,206.73,206.66,13.65865027]
[1760382571907,3.90070052,206.71,206.66,13.65865027]
[1760382572532,4.49070052,206.71,206.66,13.65865027]
[1760382573417,6.43769088,206.71,206.66,13.65865027]
[1760382574203,0.59,206.71,206.67,8.82]
[1760382574722,16.72416609,206.72,206.67,8.82]
[1760382574919,21.56173435,206.72,206.67,8.82]
[1760382575105,10.87647521,206.68,206.67,8.82]
[1760382575302,6.43769088,206.68,206.67,8.82]
[1760382575501,17.31416609,206.68,206.67,8.82]
[1760382576110,16.30487273,206.68,206.67,8.82]
[1760382576316,22.15256361,206.68,206.67,8.82]
[1760382578118,42.95256361,206.68,206.67,8.82]
[1760382578322,22.15256361,206.68,206.67,8.82]
[1760382579642,42.36256361,206.68,206.67,8.82]
[1760382579840,22.15256361,206.68,206.67,8.82]
[1760382580208,22.15256361,206.68,206.61,5.55001477]
[1760382580209,36.51528776,206.67,206.61,5.55001477]
[1760382580411,42.36297864,206.67,206.62,8.82]
[1760382580636,42.36297864,206.67,206.62,9.53]
[1760382581015,42.36297864,206.67,206.63,5.84769088]
[1760382581016,31.67647521,206.67,206.63,5.84769088]
[1760382581221,0.59,206.66,206.62,8.82]
[1760382581437,5.84769088,206.63,206.56,5.84769088]
[1760382581732,10.87647521,206.61,206.57,8.82]
[1760382581944,10.87647521,206.61,206.58,0.71]
[1760382582140,16.72416609,206.63,206.59,0.71]
[1760382582347,21.5638787,206.63,206.6,8.82]
[1760382582845,10.87647521,206.61,206.6,8.82]
[1760382583142,4.83751428,206.72,206.61,0.71]
[1760382583353,10.87647521,206.71,206.66,5.84769088]
[1760382583648,10.87647521,206.71,206.66,15.37769088]
[1760382583845,31.67647521,206.71,206.66,15.37769088]
[1760382584723,31.67647521,206.71,206.66,20.21655664]
[1760382585223,17.93806796,206.78,206.66,20.21655664]
[1760382585416,10.87647521,206.74,206.66,20.21655664]
[1760382585616,36.51347734,206.74,206.66,20.21655664]
[1760382587148,31.67647521,206.74,206.66,20.21655664]
[1760382587545,31.67647521,206.74,206.66,14.36886576]
[1760382587737,31.67647521,206.74,206.66,20.21655664]
[1760382588238,36.51346913,206.74,206.66,20.21655664]
[1760382589341,31.67647521,206.74,206.66,20.21655664]
[1760382592149,36.51354274,206.74,206.66,20.21655664]
[1760382592953,5.42723811,206.73,206.66,13.65886576]
[1760382593150,5.42723811,206.73,206.66,14.30886576]
[1760382593349,5.42723811,206.73,206.66,20.15655664]
[1760382593651,36.5135118,206.74,206.66,20.15655664]
[1760382594752,31.67647521,206.74,206.66,20.15655664]
[1760382595347,36.51366536,206.74,206.66,20.15655664]
[1760382596639,37.10366536,206.74,206.66,20.15655664]
[1760382597349,37.10366536,206.74,206.66,16.7440548]
[1760382600251,36.51366536,206.74,206.66,16.7440548]
[1760382600432,0.59,206.73,206.66,16.7440548]
[1760382601248,5.42734268,206.73,206.66,16.7440548]
[1760382601848,31.67647521,206.74,206.66,16.0940548]
[1760382601849,0.59,206.72,206.66,16.0940548]
[1760382602059,0.59,206.72,206.66,16.7440548]
[1760382602238,31.67647521,206.74,206.66,16.7440548]
[1760382602558,32.26647521,206.74,206.66,16.7440548]
[1760382603163,37.10357132,206.74,206.66,16.7440548]
[1760382603640,10.87647521,206.77,206.66,31.27640826]
[1760382603839,10.87647521,206.77,206.76,2.43518904]
[1760382604144,0.59,206.77,206.76,11.23518904]
[1760382604344,10.87647521,206.77,206.76,11.23518904]
[1760382604545,11.46647521,206.79,206.76,11.23518904]
[1760382604740,11.46647521,206.79,206.77,2.43518904]
[1760382604939,11.46647521,206.79,206.78,8.8]
[1760382605362,10.87647521,206.79,206.78,8.8]
[1760382606659,11.03063407,206.8,206.78,11.23518904]
[1760382606960,21.90710928,206.8,206.79,2.43518904]
[1760382607541,10.87647521,206.79,206.78,8.8]
[1760382607742,13.31166425,206.79,206.78,8.21]
[1760382608757,10.87647521,206.75,206.69,4.83815941]
[1760382608960,10.87647521,206.75,206.7,9.45]
[1760382609256,10.87647521,206.73,206.7,8.8]
[1760382609558,16.72267741,206.73,206.7,8.8]
[1760382609736,10.87647521,206.73,206.7,8.8]
[1760382609937,10.87647521,206.75,206.7,9.45]
[1760382610244,10.87647521,206.75,206.71,0.65]
[1760382610446,10.87647521,206.75,206.72,8.8]
[1760382610944,20.8,206.76,206.72,8.8]
[1760382611147,12.08989117,206.79,206.73,0.65]
[1760382611148,37.52267741,206.79,206.73,0.65]
[1760382611349,42.35854872,206.79,206.74,8.8]
[1760382611560,36.51234652,206.79,206.74,9.45]
[1760382611766,36.51234652,206.79,206.74,15.2962022]
[1760382612141,36.51234652,206.79,206.74,9.45]
[1760382612562,36.51234652,206.79,206.75,0.65]
[1760382612864,31.67647521,206.77,206.76,8.8]
[1760382613246,142.33063407,206.8,206.76,8.8]
[1760382613446,11.03063407,206.8,206.77,6.4962022]
[1760382613648,11.03063407,206.8,206.78,15.2962022]
[1760382613859,11.03063407,206.8,206.78,14.6462022]
[1760382614066,11.03063407,206.8,206.79,0.65]
[1760382614251,11.03063407,206.8,206.79,6.4962022]
[1760382614657,11.03063407,206.8,206.79,11.33202598]
[1760382614853,11.03063407,206.8,206.79,5.48582378]
[1760382615063,11.03063407,206.8,206.79,11.33202598]
[1760382615364,11.03063407,206.8,206.79,6.4962022]
[1760382616259,11.03063407,206.8,206.79,0.65]
[1760382616460,11.03063407,206.8,206.79,6.4962022]
[1760382616763,11.03063407,206.8,206.79,11.33202598]
[1760382617248,10.31063407,206.8,206.79,11.33202598]
[1760382617875,10.31063407,206.8,206.79,5.48582378]
[1760382618052,10.31063407,206.8,206.79,11.33202598]
[1760382620151,10.31063407,206.8,206.78,8.8]
[1760382620359,10.31063407,206.8,206.79,10.68202598]
[1760382620869,10.31063407,206.8,206.79,11.34202598]
[1760382621259,10.31063407,206.8,206.79,6.5062022]
[1760382621654,10.31063407,206.8,206.78,13.63594792]
[1760382621865,10.87647521,206.79,206.75,5.49672607]
[1760382622190,10.87647521,206.79,206.76,8.8]
[1760382622466,10.87647521,206.79,206.75,6.5062022]
[1760382622663,10.87647521,206.79,206.71,20.8]
[1760382622664,10.31063407,206.8,206.78,5.8462022]
[1760382622867,10.31063407,206.8,206.79,13.63582378]
[1760382623389,10.31063407,206.8,206.79,11.34202598]
[1760382623561,10.31063407,206.8,206.79,20.14202598]
[1760382625961,10.31063407,206.8,206.79,19.48202598]
[1760382626468,10.31063407,206.8,206.79,20.14202598]
[1760382627770,39.95921981,206.93,206.79,56.41070434]
[1760382627951,10.87647521,206.92,206.87,5.8462022]
[1760382628145,14.20121179,206.92,206.89,5.8462022]
[1760382628351,14.20121179,206.92,206.9,14.6462022]
[1760382629067,14.20121179,206.92,206.9,19.47943072]
[1760382629572,2.1,207.0,206.93,5.8462022]
[1760382629773,2.1,207.0,206.94,30.26]
[1760382629951,2.1,207.0,206.95,5.8462022]
[1760382630154,2.1,207.0,206.97,5.8462022]
[1760382630377,2.1,207.0,206.98,14.6462022]
[1760382630674,2.1,207.0,206.99,5.8462022]
[1760382631062,2.1,207.0,206.99,10.67735346]
[1760382631258,2.1,207.0,206.99,4.83115126]
[1760382631462,2.1,207.0,206.99,10.67735346]
[1760382631769,2.1,207.0,206.99,5.49115126]
[1760382631976,2.82,207.0,206.95,4.83208504]
[1760382632153,2.1,207.0,206.97,5.8462022]
[1760382632355,2.1,207.0,206.99,5.8462022]
[1760382632549,2.1,207.0,206.99,15.3062022]
[1760382632753,2.1,207.0,206.99,8.8]
[1760382632957,2.1,207.0,206.99,4.83115126]
[1760382633161,2.1,207.0,206.99,13.63115126]
[1760382633360,2.1,207.0,206.97,4.831547]
[1760382633564,2.82,207.0,206.98,8.8]
[1760382633771,2.1,207.0,206.98,8.8]
[1760382633973,2.1,207.0,206.97,4.831547]
[1760382634283,3.88606479,206.98,206.9,4.83302304]
[1760382634459,10.87647521,206.97,206.92,3.88606479]
[1760382634659,10.87647521,206.97,206.93,9.46]
[1760382635156,14.01257496,206.98,206.94,4.83231854]
[1760382635365,14.01257496,206.98,206.95,8.8]
[1760382636175,15.48254,206.97,206.89,0.66]
[1760382636354,15.48254,206.97,206.9,12.68606479]
[1760382636761,3.88606479,206.96,206.9,8.8]
[1760382637270,15.48254,206.97,206.91,8.71908397]
[1760382637582,15.48254,206.97,206.92,8.8]
[1760382638481,10.87647521,206.97,206.92,12.68606479]
[1760382638783,10.87647521,206.97,206.93,8.8]
[1760382639384,11.59647521,206.97,206.93,13.63242957]
[1760382639559,10.87647521,206.97,206.93,13.63242957]
[1760382640275,10.87647521,206.97,206.93,14.29242957]
[1760382640888,2.1,207.0,206.96,3.88606479]
[1760382641192,2.1,207.0,206.99,7.77212958]
[1760382641358,2.1,207.0,206.99,13.34606479]
[1760382641561,0.72,207.12,206.99,17.23212958]
[1760382641759,2.52263729,207.13,207.0,29.71522136]
[1760382642082,0.72,207.12,207.07,3.88606479]
[1760382642264,0.72,207.12,207.07,12.68606479]
[1760382642465,0.72,207.12,207.07,17.51534957]
[1760382643262,0.72,207.12,207.07,13.62928478]
[1760382643477,0.72,207.12,207.07,17.51534957]
[1760382643685,0.72,207.11,207.07,17.51534957]
[1760382644591,0.72,207.11,207.07,13.62928478]
[1760382644775,0.72,207.11,207.07,17.51534957]
[1760382645083,0.72,207.11,207.07,12.68606479]
[1760382646484,0.72,207.11,207.07,8.8]
[1760382646689,38.87847521,207.08,207.07,8.78]
[1760382646867,38.87847521,207.08,207.07,8.8]
[1760382647062,42.76454,207.08,207.07,8.8]
[1760382647369,42.76454,207.08,206.98,3.88606479]
[1760382647370,20.8,207.05,206.98,3.88606479]
[1760382647566,39.42214157,207.05,206.99,8.8]
[1760382647995,39.42214157,207.05,206.99,12.68606479]
[1760382648192,39.42214157,207.05,206.99,8.8]
[1760382648379,39.42214157,207.05,206.99,12.68606479]
[1760382648576,39.42214157,207.05,206.99,13.63097011]
[1760382649387,34.81607678,207.05,206.99,17.5170349]
[1760382649703,38.70214157,207.05,206.99,17.5170349]
[1760382649868,34.81607678,207.05,206.99,17.5170349]
[1760382650181,34.81607678,207.05,207.0,3.88606479]
[1760382650378,14.01607678,207.05,207.02,3.88606479]
[1760382650576,14.01607678,207.05,207.03,13.61015926]
[1760382651087,14.01607678,207.05,207.04,4.57606479]
[1760382652485,14.01607678,207.05,207.04,9.40604933]
[1760382653375,27.282,207.08,207.04,21.48101069]
[1760382653701,27.282,207.08,207.05,9.47]
[1760382654493,27.282,207.08,207.07,3.88606479]
[1760382654690,27.282,207.08,207.07,17.49534957]
[1760382656175,27.992,207.08,207.05,4.82975126]
[1760382656485,27.992,207.08,207.06,8.78]
[1760382656701,0.71,207.07,207.06,8.78]
[1760382657294,27.282,207.08,207.06,8.78]
[1760382657501,13.55911021,207.07,207.06,8.78]
[1760382658213,12.84911021,207.07,207.06,8.78]
[1760382659106,13.55911021,207.07,207.06,8.78]
[1760382660402,12.84911021,207.07,207.06,8.78]
[1760382660808,13.55911021,207.07,207.06,8.78]
[1760382661509,12.84911021,207.07,207.06,13.60951801]